[Event "ESP-chT 2nd Division 2019"]
[Site "Linares"]
[Date "2019.08.22"]
[Round "5.26"]
[White "Alcazar Jimenez, Jesus"]
[Black "Fernandez Barrera, Victor"]
[Result "1/2-1/2"]
[ECO "B30"]
[WhiteElo "2160"]
[BlackElo "2301"]
[Annotator "ChessBase"]
[PlyCount "73"]
[EventDate "2019.08.19"]
[EventType "team-tourn"]
[EventCountry "ESP"]
[SourceTitle "playchess.com"]
[Source "ChessBase"]
[SourceQuality "1"]
[TimeControl "5400+30"]

1. e4 {[%emt 0:00:00]} c5 {[%emt 0:00:00]} 2. Nf3 {[%emt 0:00:00]} Nc6 {[%emt 0:00:00]} 3. Bb5 {[%emt 0:00:30]} e6 {[%emt 0:00:05]} 4. Bxc6 {[%emt 0:02:14]} bxc6 {[%emt 0:00:07]} 5. b3 {[%emt 0:01:13]} Ne7 {[%emt 0:00:50]} 6. Ba3 {[%emt 0:02:39]} Ng6 {[%emt 0:04:25]} 7. d4 {[%emt 0:10:47]} Qa5+ {[%emt 0:06:24]} 8. Qd2 {[%emt 0:01:04]} Qxd2+ {[%emt 0:00:41]} 9. Nbxd2 {[%emt 0:00:07]} cxd4 {[%emt 0:01:54]} 10. Bxf8 {[%emt 0:00:12]} Rxf8 {[%emt 0:00:59]} 11. Nxd4 {[%emt 0:00:21]} Ba6 {[%emt 0:02:43]} 12. c4 {[%emt 0:02:00]} c5 {[%emt 0:04:34]} 13. Ne2 {[%emt 0:01:35]} Bb7 {[%emt 0:06:00]} 14. Nc3 {[%emt 0:02:26]} Bc6 {[%emt 0:03:40]} 15. O-O {[%emt 0:01:33]} f5 {[%emt 0:10:34]} 16. Rfe1 {[%emt 0:03:55]} O-O-O {[%emt 0:08:08]} 17. Rad1 {[%emt 0:05:42]} Kc7 {[%emt 0:04:06]} 18. f3 {[%emt 0:14:08]} h6 {[%emt 0:06:52]} 19. Nf1 {[%emt 0:04:24]} f4 {[%emt 0:05:55]} 20. Nd2 {[%emt 0:10:18]} Ne5 {[%emt 0:01:55]} 21. Ndb1 {[%emt 0:09:18]} a6 {[%emt 0:05:02]} 22. Na3 {[%emt 0:04:56]} g5 {[%emt 0:03:34]} 23. Nc2 {[%emt 0:02:20]} Rg8 {[%emt 0:02:06]} 24. Nd5+ {[%emt 0:04:58]} Kb7 {[%emt 0:07:02]} 25. h3 {[%emt 0:06:23]} h5 {[%emt 0:01:47]} 26. Kf2 {[%emt 0:04:32]} Rg7 {[%emt 0:03:34]} 27. Rh1 {[%emt 0:02:04]} d6 {[%emt 0:05:21]} 28. Nc3 {[%emt 0:00:54]} Kc7 {[%emt 0:00:49]} 29. Ne1 {[%emt 0:00:51]} Rdg8 {[%emt 0:01:30]} 30. Ne2 {[%emt 0:01:17]} Rf8 {[%emt 0:01:04]} 31. Nd3 {[%emt 0:01:06]} Nd7 {[%emt 0:01:25]} 32. h4 {[%emt 0:00:48]} e5 {[%emt 0:00:10]} 33. hxg5 {[%emt 0:00:23]} Rxg5 {[%emt 0:00:01]} 34. Rh2 {[%emt 0:00:18]} Rfg8 {[%emt 0:00:21]} 35. Rdh1 {[%emt 0:00:10]} Nf6 {[%emt 0:00:23]} 36. Nc3 {[%emt 0:00:26]} Rb8 37. Ne2 1/2-1/2

[Event "ESP-chT 2nd Division 2019"]
[Site "Linares"]
[Date "2019.08.22"]
[Round "5.27"]
[White "Buendia Pinar, Alvaro"]
[Black "Garcia Salamero, Gabriel"]
[Result "1/2-1/2"]
[ECO "D55"]
[WhiteElo "2277"]
[BlackElo "2168"]
[Annotator "NA"]
[PlyCount "66"]
[EventDate "2019.08.19"]
[EventType "team-tourn"]
[EventCountry "ESP"]
[SourceTitle "playchess.com"]
[Source "ChessBase"]
[SourceQuality "1"]
[TimeControl "5400+30"]

1. d4 {[%emt 0:00:03]} d5 {[%emt 0:00:00]} 2. c4 {[%emt 0:00:43]} e6 {[%emt 0:00:00]} 3. Nc3 {[%emt 0:00:39]} Nf6 {[%emt 0:00:00]} 4. Bg5 {[%emt 0:00:33]} Be7 {[%emt 0:00:00]} 5. e3 {[%emt 0:00:54]} O-O {[%emt 0:00:00]} 6. Nf3 {[%emt 0:00:26]} b6 {[%emt 0:00:55]} 7. Bd3 {[%emt 0:01:40]} Bb7 {[%emt 0:00:02]} 8. O-O {[%emt 0:00:50]} Ne4 {[%emt 0:02:43]} 9. Bxe7 {[%emt 0:00:39]} Qxe7 {[%emt 0:00:02]} 10. Qc2 {[%emt 0:05:06]} f5 {[%emt 0:03:01]} 11. cxd5 {[%emt 0:01:18]} exd5 {[%emt 0:01:04]} 12. Ne5 {[%emt 0:02:59]} c5 {[%emt 0:04:08]} 13. f3 {[%emt 0:12:42]} Nd6 {[%emt 0:02:14]} 14. f4 {[%emt 0:00:46]} Nd7 {[%emt 0:08:16]} 15. Qe2 {[%emt 0:07:28]} Nf6 {[%emt 0:06:40]} 16. a4 {[%emt 0:02:40]} a6 {[%emt 0:05:24]} 17. b3 {[%emt 0:03:56]} Rfc8 {[%emt 0:02:15]} 18. Rfc1 {[%emt 0:03:30]} Kh8 {[%emt 0:03:25]} 19. Nd1 {[%emt 0:04:52]} Qe6 {[%emt 0:19:51]} 20. Rc2 {[%emt 0:14:06]} Nde4 {[%emt 0:16:27]} 21. Rac1 {[%emt 0:01:10]} a5 {[%emt 0:04:32]} 22. Nf2 {[%emt 0:07:02]} Qe7 {[%emt 0:06:36]} 23. Bb5 {[%emt 0:09:42]} Nxf2 {[%emt 0:03:51]} 24. Qxf2 {[%emt 0:00:53]} Ne4 {[%emt 0:00:01]} 25. Qe1 {[%emt 0:00:42]} Rc7 {[%emt 0:02:45]} 26. Bd3 {[%emt 0:03:52]} Rac8 {[%emt 0:00:42]} 27. h3 {[%emt 0:06:28]} cxd4 {[%emt 0:03:01]} 28. exd4 {[%emt 0:00:10]} Rxc2 {[%emt 0:00:36]} 29. Rxc2 {[%emt 0:00:03]} Rxc2 {[%emt 0:00:06]} 30. Bxc2 {[%emt 0:00:07]} Qc7 {[%emt 0:01:19]} 31. Bd3 {[%emt 0:01:07]} h6 {[%emt 0:00:47]} 32. Kh2 {[%emt 0:00:29]} Kh7 {[%emt 0:01:01]} 33. Qh4 {[%emt 0:02:19]} Qc1 1/2-1/2

[Event "ESP-chT 2nd Division 2019"]
[Site "Linares"]
[Date "2019.08.22"]
[Round "5.28"]
[White "Garcia Garrido, Antonio"]
[Black "Jimenez Martinez, Jose Vicente"]
[Result "0-1"]
[ECO "B06"]
[WhiteElo "2136"]
[BlackElo "2264"]
[Annotator "NA"]
[PlyCount "64"]
[EventDate "2019.08.19"]
[EventType "team-tourn"]
[EventCountry "ESP"]
[SourceTitle "playchess.com"]
[Source "ChessBase"]
[SourceQuality "1"]
[TimeControl "5400+30"]

1. e4 {[%emt 0:00:00]} d6 {[%emt 0:00:00]} 2. d4 {[%emt 0:00:00]} g6 {[%emt 0:00:00]} 3. Nc3 {[%emt 0:00:17]} Bg7 {[%emt 0:00:00]} 4. Be3 {[%emt 0:01:04]} a6 {[%emt 0:00:00]} 5. Nf3 {[%emt 0:01:15]} b5 {[%emt 0:04:31]} 6. Bd3 {[%emt 0:04:23]} Bb7 {[%emt 0:08:10]} 7. e5 {[%emt 0:08:24]} Nd7 {[%emt 0:03:28]} 8. e6 {[%emt 0:05:30]} fxe6 {[%emt 0:00:04]} 9. Ng5 {[%emt 0:00:08]} Nf8 {[%emt 0:00:05]} 10. O-O {[%emt 0:00:08]} Nh6 {[%emt 0:00:20]} 11. a4 {[%emt 0:11:50]} b4 {[%emt 0:02:13]} 12. Ne2 {[%emt 0:08:35]} Nf7 {[%emt 0:02:26]} 13. Ne4 {[%emt 0:06:21]} e5 {[%emt 0:02:48]} 14. c3 {[%emt 0:01:28]} bxc3 {[%emt 0:13:08]} 15. bxc3 {[%emt 0:01:27]} Bxe4 {[%emt 0:23:28]} 16. Bxe4 {[%emt 0:00:13]} d5 {[%emt 0:00:04]} 17. Bb1 {[%emt 0:03:07]} exd4 {[%emt 0:08:30]} 18. Bxd4 {[%emt 0:08:58]} e5 {[%emt 0:02:47]} 19. Re1 {[%emt 0:06:50]} Ne6 {[%emt 0:03:01]} 20. f4 {[%emt 0:07:18]} O-O {[%emt 0:03:56]} 21. Bxe5 {[%emt 0:03:41]} Nxe5 {[%emt 0:01:47]} 22. fxe5 {[%emt 0:00:11]} Bxe5 {[%emt 0:00:39]} 23. Ng3 {[%emt 0:01:37]} Qd6 {[%emt 0:05:02]} 24. Ba2 {[%emt 0:01:48]} c6 {[%emt 0:00:36]} 25. c4 {[%emt 0:04:06]} Bxg3 {[%emt 0:05:52]} 26. hxg3 {[%emt 0:04:03]} Qxg3 {[%emt 0:00:17]} 27. Qd2 {[%emt 0:03:53]} Ng5 {[%emt 0:02:12]} 28. Re3 {[%emt 0:00:32]} Nh3+ {[%emt 0:00:14]} 29. Kh1 {[%emt 0:00:14]} Nf2+ {[%emt 0:00:03]} 30. Kg1 {[%emt 0:00:25]} Qh4 {[%emt 0:00:06]} 31. Rh3 {[%emt 0:00:54]} Nxh3+ {[%emt 0:00:11]} 32. gxh3 {[%emt 0:00:06]} Rf3 {[%emt 0:01:02]} 0-1

[Event "ESP-chT 2nd Division 2019"]
[Site "Linares"]
[Date "2019.08.22"]
[Round "5.29"]
[White "Alvarez Serrano, Carlos"]
[Black "Collado Barbas, Laura"]
[Result "0-1"]
[ECO "A13"]
[WhiteElo "2244"]
[BlackElo "2070"]
[Annotator "NA"]
[PlyCount "62"]
[EventDate "2019.08.19"]
[EventType "team-tourn"]
[EventCountry "ESP"]
[SourceTitle "playchess.com"]
[Source "ChessBase"]
[SourceQuality "1"]
[TimeControl "5400+30"]

1. c4 {[%emt 0:00:14]} e6 {[%emt 0:00:00]} 2. g3 {[%emt 0:00:08]} d5 {[%emt 0:00:00]} 3. Bg2 {[%emt 0:00:06]} Nf6 {[%emt 0:07:41]} 4. Nf3 {[%emt 0:00:08]} d4 {[%emt 0:02:41]} 5. O-O {[%emt 0:02:52]} c5 {[%emt 0:00:50]} 6. e3 {[%emt 0:00:01]} Nc6 {[%emt 0:00:32]} 7. exd4 {[%emt 0:00:08]} cxd4 {[%emt 0:00:30]} 8. d3 {[%emt 0:00:05]} Be7 {[%emt 0:00:55]} 9. Re1 {[%emt 0:00:06]} O-O {[%emt 0:00:28]} 10. Na3 {[%emt 0:00:34]} Ne8 {[%emt 0:01:34]} 11. Nc2 {[%emt 0:00:06]} a5 {[%emt 0:03:00]} 12. b3 {[%emt 0:04:29]} f6 {[%emt 0:01:50]} 13. a3 {[%emt 0:00:20]} e5 {[%emt 0:00:49]} 14. Rb1 {[%emt 0:01:43]} Nc7 {[%emt 0:06:00]} 15. b4 {[%emt 0:00:55]} axb4 {[%emt 0:00:19]} 16. axb4 {[%emt 0:00:02]} b5 {[%emt 0:06:19]} 17. Nh4 {[%emt 0:06:46]} Bd7 {[%emt 0:08:49]} 18. Nf5 {[%emt 0:00:49]} Bxf5 {[%emt 0:03:53]} 19. Bxc6 {[%emt 0:00:08]} bxc4 {[%emt 0:02:36]} 20. dxc4 {[%emt 0:06:43]} Ra2 {[%emt 0:12:32]} 21. Be4 {[%emt 0:04:45]} Bxe4 {[%emt 0:01:09]} 22. Rxe4 {[%emt 0:00:01]} d3 {[%emt 0:01:01]} 23. Ne3 {[%emt 0:00:37]} d2 {[%emt 0:02:31]} 24. Bxd2 {[%emt 0:02:04]} Rxd2 {[%emt 0:01:45]} 25. Qb3 {[%emt 0:00:01]} Qd7 {[%emt 0:04:35]} 26. c5+ {[%emt 0:02:44]} Kh8 {[%emt 0:00:46]} 27. Nc4 {[%emt 0:01:30]} Rd3 {[%emt 0:02:00]} 28. Qc2 {[%emt 0:00:32]} Qd5 {[%emt 0:02:44]} 29. Re2 {[%emt 0:00:10]} Nb5 {[%emt 0:01:46]} 30. Ne3 {[%emt 0:00:01]} Qd8 {[%emt 0:01:05]} 31. Nd1 {[%emt 0:01:43]} Na3 {[%emt 0:00:21]} 0-1

[Event "ESP-chT 2nd Division 2019"]
[Site "Linares"]
[Date "2019.08.22"]
[Round "5.30"]
[White "Lopez Paniego, Noel"]
[Black "Jimenez Fernandez, Rebeca"]
[Result "0-1"]
[ECO "A06"]
[WhiteElo "2059"]
[BlackElo "1928"]
[Annotator "NA"]
[PlyCount "92"]
[EventDate "2019.08.19"]
[EventType "team-tourn"]
[EventCountry "ESP"]
[SourceTitle "playchess.com"]
[Source "ChessBase"]
[SourceQuality "1"]
[TimeControl "5400+30"]

1. Nf3 {[%emt 0:00:00]} d5 {[%emt 0:00:00]} 2. b3 {[%emt 0:00:00]} Nf6 {[%emt 0:00:00]} 3. Bb2 {[%emt 0:00:00]} g6 {[%emt 0:01:23]} 4. e3 {[%emt 0:00:20]} Bg7 {[%emt 0:00:24]} 5. d4 {[%emt 0:01:56]} Bg4 {[%emt 0:01:46]} 6. h3 {[%emt 0:00:35]} Bxf3 {[%emt 0:00:32]} 7. Qxf3 {[%emt 0:00:04]} O-O {[%emt 0:00:52]} 8. Bd3 {[%emt 0:00:15]} Nbd7 {[%emt 0:01:14]} 9. O-O {[%emt 0:00:38]} c5 {[%emt 0:03:04]} 10. Nd2 {[%emt 0:06:39]} Rc8 {[%emt 0:02:35]} 11. Rfd1 {[%emt 0:09:41]} e6 {[%emt 0:02:48]} 12. Rac1 {[%emt 0:10:47]} Qe7 {[%emt 0:03:03]} 13. Qe2 {[%emt 0:10:27]} e5 {[%emt 0:07:14]} 14. dxe5 {[%emt 0:01:39]} Nxe5 {[%emt 0:01:28]} 15. c4 {[%emt 0:10:03]} Rfd8 {[%emt 0:09:04]} 16. Bb1 {[%emt 0:03:43]} Nc6 {[%emt 0:09:37]} 17. cxd5 {[%emt 0:13:02]} Nxd5 {[%emt 0:01:48]} 18. Ne4 {[%emt 0:02:42]} b6 {[%emt 0:03:56]} 19. Bxg7 {[%emt 0:06:06]} Kxg7 {[%emt 0:00:16]} 20. Qb2+ {[%emt 0:00:17]} Qe5 {[%emt 0:00:45]} 21. Qxe5+ {[%emt 0:08:52]} Nxe5 {[%emt 0:00:08]} 22. Rd2 {[%emt 0:00:16]} Rd7 {[%emt 0:02:59]} 23. Rcd1 {[%emt 0:02:17]} Rcd8 {[%emt 0:00:27]} 24. Ng3 {[%emt 0:07:31]} Nc3 {[%emt 0:01:26]} 25. Rxd7 {[%emt 0:00:43]} Rxd7 {[%emt 0:00:11]} 26. Rc1 {[%emt 0:01:02]} Nxb1 {[%emt 0:01:10]} 27. Rxb1 {[%emt 0:00:01]} Rd2 {[%emt 0:00:12]} 28. a4 {[%emt 0:00:14]} f5 {[%emt 0:00:45]} 29. f4 {[%emt 0:02:21]} Nd3 {[%emt 0:03:06]} 30. Nf1 {[%emt 0:00:10]} Rb2 {[%emt 0:05:41]} 31. Rxb2 {[%emt 0:00:34]} Nxb2 {[%emt 0:00:07]} 32. Nd2 {[%emt 0:00:37]} Kf6 {[%emt 0:01:14]} 33. Kf1 {[%emt 0:01:29]} Ke6 {[%emt 0:00:56]} 34. Ke2 {[%emt 0:00:22]} Kd5 {[%emt 0:01:32]} 35. g4 {[%emt 0:00:37]} c4 {[%emt 0:12:22]} 36. bxc4+ {[%emt 0:00:17]} Nxc4 {[%emt 0:00:09]} 37. gxf5 {[%emt 0:00:46]} gxf5 {[%emt 0:00:12]} 38. Nb3 {[%emt 0:00:09]} Ke4 {[%emt 0:01:09]} 39. Nd4 {[%emt 0:01:32]} Nxe3 {[%emt 0:00:57]} 40. Nb5 {[%emt 0:00:42]} a6 {[%emt 0:03:28]} 41. Nc7 {[%emt 0:00:16]} a5 {[%emt 0:01:45]} 42. Ne6 {[%emt 0:00:20]} Nd5 {[%emt 0:01:25]} 43. Ng5+ {[%emt 0:00:51]} Kxf4 {[%emt 0:00:19]} 44. Nxh7 {[%emt 0:00:05]} Nc3+ {[%emt 0:00:21]} 45. Kf2 {[%emt 0:00:57]} Nxa4 {[%emt 0:00:10]} 46. h4 {[%emt 0:00:03]} Kg4 {[%emt 0:00:26]} 0-1

[Event "ESP-chT 2nd Division 2019"]
[Site "Linares"]
[Date "2019.08.22"]
[Round "5.31"]
[White "Bernabeu Lopez, Carlos Javier"]
[Black "Narciso Dublan, Marc"]
[Result "0-1"]
[ECO "A06"]
[WhiteElo "2370"]
[BlackElo "2483"]
[Annotator "ChessBase"]
[PlyCount "92"]
[EventDate "2019.08.19"]
[EventType "team-tourn"]
[EventCountry "ESP"]
[SourceTitle "playchess.com"]
[Source "ChessBase"]
[SourceQuality "1"]
[TimeControl "5400+30"]

1. Nf3 {[%emt 0:00:00]} d5 {[%emt 0:00:15]} 2. g3 {[%emt 0:00:00]} Bg4 {[%emt 0:00:32]} 3. Bg2 {[%emt 0:00:00]} e6 {[%emt 0:00:11]} 4. O-O {[%emt 0:00:17]} Nf6 {[%emt 0:00:12]} 5. c4 {[%emt 0:01:09]} Nbd7 {[%emt 0:00:24]} 6. cxd5 {[%emt 0:04:34]} exd5 {[%emt 0:00:08]} 7. h3 {[%emt 0:00:44]} Bh5 {[%emt 0:03:56]} 8. d4 {[%emt 0:05:32]} c6 {[%emt 0:02:32]} 9. Nc3 {[%emt 0:00:44]} Bd6 {[%emt 0:01:05]} 10. Nh4 {[%emt 0:01:52]} O-O {[%emt 0:03:47]} 11. Nf5 {[%emt 0:03:45]} Bb4 {[%emt 0:04:04]} 12. Bf4 {[%emt 0:19:16]} Nb6 {[%emt 0:09:28]} 13. a3 {[%emt 0:09:17]} Bxc3 {[%emt 0:00:59]} 14. bxc3 {[%emt 0:00:04]} Qd7 {[%emt 0:06:08]} 15. g4 {[%emt 0:04:27]} Bg6 {[%emt 0:00:49]} 16. Ng3 {[%emt 0:01:07]} Ne4 {[%emt 0:08:11]} 17. Bxe4 {[%emt 0:09:30]} dxe4 {[%emt 0:01:18]} 18. e3 {[%emt 0:00:33]} f5 {[%emt 0:05:06]} 19. g5 {[%emt 0:01:24]} Bf7 {[%emt 0:02:41]} 20. Qd2 {[%emt 0:08:48]} Bc4 {[%emt 0:01:42]} 21. Rfd1 {[%emt 0:01:51]} Nd5 {[%emt 0:04:32]} 22. Kh2 {[%emt 0:00:05]} Rae8 {[%emt 0:07:18]} 23. Be5 {[%emt 0:05:06]} g6 {[%emt 0:04:54]} 24. Bf4 {[%emt 0:04:04]} Re6 {[%emt 0:00:43]} 25. Re1 {[%emt 0:00:17]} Qd8 {[%emt 0:02:21]} 26. a4 {[%emt 0:00:56]} Rf7 {[%emt 0:02:09]} 27. h4 {[%emt 0:00:58]} Nxf4 {[%emt 0:03:55]} 28. exf4 {[%emt 0:00:04]} c5 {[%emt 0:01:44]} 29. Qe3 {[%emt 0:01:41]} Rd7 {[%emt 0:01:09]} 30. Red1 {[%emt 0:00:57]} Red6 {[%emt 0:01:01]} 31. h5 {[%emt 0:00:15]} cxd4 {[%emt 0:02:55]} 32. cxd4 {[%emt 0:00:07]} Bd3 {[%emt 0:03:18]} 33. h6 {[%emt 0:02:47]} Rxd4 {[%emt 0:01:53]} 34. Rdc1 {[%emt 0:01:52]} b6 {[%emt 0:08:01]} 35. Rc3 {[%emt 0:03:34]} Ba6 {[%emt 0:00:18]} 36. Qc1 {[%emt 0:01:17]} Rd2 {[%emt 0:01:56]} 37. Qe1 {[%emt 0:03:31]} Rxf2+ {[%emt 0:03:09]} 38. Qxf2 {[%emt 0:02:31]} Rd2 {[%emt 0:00:03]} 39. Ra2 {[%emt 0:01:22]} Rxf2+ {[%emt 0:02:51]} 40. Rxf2 {[%emt 0:00:04]} Bd3 {[%emt 0:01:11]} 41. Ne2 {[%emt 0:02:44]} e3 {[%emt 0:00:47]} 42. Rg2 {[%emt 0:00:05]} Be4 {[%emt 0:00:33]} 43. Rg3 {[%emt 0:01:39]} Qd1 {[%emt 0:00:09]} 44. Rgxe3 {[%emt 0:00:17]} Qh1+ {[%emt 0:00:08]} 45. Kg3 {[%emt 0:00:01]} Qg2+ {[%emt 0:00:06]} 46. Kh4 {[%emt 0:00:03]} Qg4# 0-1

[Event "ESP-chT 2nd Division 2019"]
[Site "Linares"]
[Date "2019.08.22"]
[Round "5.32"]
[White "Bayo Milagro, Alvaro"]
[Black "Blanco Acevedo, Cristobal Jose"]
[Result "0-1"]
[ECO "E70"]
[WhiteElo "2284"]
[BlackElo "2342"]
[Annotator "NA"]
[PlyCount "70"]
[EventDate "2019.08.19"]
[EventType "team-tourn"]
[EventCountry "ESP"]
[SourceTitle "playchess.com"]
[Source "ChessBase"]
[SourceQuality "1"]
[TimeControl "5400+30"]

1. d4 {[%emt 0:01:44]} Nf6 {[%emt 0:00:01]} 2. c4 {[%emt 0:00:11]} g6 {[%emt 0:00:04]} 3. Nc3 {[%emt 0:00:40]} Bg7 {[%emt 0:00:05]} 4. e4 {[%emt 0:00:09]} d6 {[%emt 0:00:05]} 5. Bg5 {[%emt 0:01:48]} h6 {[%emt 0:00:28]} 6. Be3 {[%emt 0:00:07]} O-O {[%emt 0:00:23]} 7. h3 {[%emt 0:07:51]} e5 {[%emt 0:00:27]} 8. d5 {[%emt 0:01:36]} Na6 {[%emt 0:00:51]} 9. g4 {[%emt 0:02:13]} Nc5 {[%emt 0:00:06]} 10. Qc2 {[%emt 0:00:28]} c6 {[%emt 0:03:18]} 11. b4 {[%emt 0:02:34]} cxd5 {[%emt 0:00:53]} 12. exd5 {[%emt 0:02:48]} Ncd7 {[%emt 0:01:25]} 13. Rd1 {[%emt 0:15:08]} Qe7 {[%emt 0:07:54]} 14. Nge2 {[%emt 0:02:26]} a5 {[%emt 0:03:43]} 15. a3 {[%emt 0:01:18]} axb4 {[%emt 0:00:15]} 16. axb4 {[%emt 0:00:06]} e4 {[%emt 0:01:19]} 17. Ng3 {[%emt 0:12:02]} Ra3 {[%emt 0:01:59]} 18. Nb5 {[%emt 0:02:39]} Rxe3+ {[%emt 0:05:45]} 19. fxe3 {[%emt 0:00:17]} Ne5 {[%emt 0:00:18]} 20. Be2 {[%emt 0:03:29]} Ne8 {[%emt 0:00:09]} 21. Kd2 {[%emt 0:01:52]} f5 {[%emt 0:01:01]} 22. gxf5 {[%emt 0:00:23]} gxf5 {[%emt 0:00:18]} 23. Rdf1 {[%emt 0:01:05]} f4 {[%emt 0:06:15]} 24. exf4 {[%emt 0:03:07]} Ng6 {[%emt 0:01:00]} 25. Qxe4 {[%emt 0:01:10]} Qf6 {[%emt 0:00:04]} 26. Bd3 {[%emt 0:01:31]} Qb2+ {[%emt 0:02:43]} 27. Ke3 {[%emt 0:00:07]} Nh4 {[%emt 0:00:41]} 28. Qh7+ {[%emt 0:02:21]} Kf7 {[%emt 0:00:01]} 29. Nh5 {[%emt 0:01:20]} Rh8 {[%emt 0:02:02]} 30. Nxd6+ {[%emt 0:03:24]} Kf8 {[%emt 0:00:51]} 31. Qxh8+ {[%emt 0:09:46]} Bxh8 {[%emt 0:00:28]} 32. Nxc8 {[%emt 0:00:03]} Qd4+ {[%emt 0:09:31]} 33. Ke2 {[%emt 0:00:27]} Ng2 {[%emt 0:00:06]} 34. Rf3 {[%emt 0:01:27]} Qb2+ {[%emt 0:00:17]} 35. Kf1 {[%emt 0:00:37]} Nh4 {[%emt 0:02:07]} 0-1

[Event "ESP-chT 2nd Division 2019"]
[Site "Linares"]
[Date "2019.08.22"]
[Round "5.33"]
[White "Castilla Leon Salas, Carlos"]
[Black "Lizuain Toni, Javier"]
[Result "1-0"]
[ECO "A41"]
[WhiteElo "2252"]
[BlackElo "1884"]
[Annotator "NA"]
[PlyCount "87"]
[EventDate "2019.08.19"]
[EventType "team-tourn"]
[EventCountry "ESP"]
[SourceTitle "playchess.com"]
[Source "ChessBase"]
[SourceQuality "1"]
[TimeControl "5400+30"]

1. d4 {[%emt 0:01:36]} d6 {[%emt 0:00:00]} 2. c4 {[%emt 0:01:34]} e5 {[%emt 0:00:45]} 3. d5 {[%emt 0:00:23]} f5 {[%emt 0:00:09]} 4. e4 {[%emt 0:00:19]} fxe4 {[%emt 0:01:10]} 5. Nc3 {[%emt 0:00:17]} Nf6 {[%emt 0:00:21]} 6. Nge2 {[%emt 0:00:26]} Bf5 {[%emt 0:01:05]} 7. Ng3 {[%emt 0:00:29]} Bg6 {[%emt 0:00:21]} 8. Bg5 {[%emt 0:03:40]} Nbd7 {[%emt 0:10:04]} 9. Ngxe4 {[%emt 0:05:36]} Be7 {[%emt 0:01:38]} 10. Bxf6 {[%emt 0:03:09]} Bxf6 {[%emt 0:09:19]} 11. Bd3 {[%emt 0:01:12]} O-O {[%emt 0:00:43]} 12. Qg4 {[%emt 0:08:03]} Be7 {[%emt 0:25:04]} 13. O-O-O {[%emt 0:06:47]} Rf4 {[%emt 0:16:34]} 14. Qe2 {[%emt 0:00:29]} Qf8 {[%emt 0:02:41]} 15. Kb1 {[%emt 0:02:43]} Re8 {[%emt 0:01:26]} 16. Qc2 {[%emt 0:02:53]} Nc5 {[%emt 0:08:21]} 17. f3 {[%emt 0:05:24]} Bxe4 {[%emt 0:04:59]} 18. Nxe4 {[%emt 0:02:22]} Nxd3 {[%emt 0:00:42]} 19. Rxd3 {[%emt 0:01:48]} Qf5 {[%emt 0:01:33]} 20. Re1 {[%emt 0:06:41]} Rf8 {[%emt 0:01:22]} 21. Qe2 {[%emt 0:07:01]} Qh5 {[%emt 0:02:15]} 22. h3 {[%emt 0:02:03]} Qf7 {[%emt 0:00:59]} 23. Ra3 {[%emt 0:03:03]} Ra8 {[%emt 0:04:36]} 24. Qe3 {[%emt 0:06:47]} a6 {[%emt 0:01:31]} 25. Qb3 {[%emt 0:01:23]} b6 {[%emt 0:00:55]} 26. Qa4 {[%emt 0:00:20]} Rf8 {[%emt 0:02:22]} 27. Qd7 {[%emt 0:01:12]} Bd8 28. Qxf7+ {[%emt 0:00:23]} Kxf7 {[%emt 0:02:04]} 29. Rxa6 {[%emt 0:00:25]} Ke8 {[%emt 0:00:12]} 30. b4 {[%emt 0:01:09]} Be7 {[%emt 0:00:56]} 31. Re3 {[%emt 0:04:15]} g5 {[%emt 0:00:31]} 32. Ra8+ {[%emt 0:00:52]} Kd7 {[%emt 0:00:12]} 33. Rxf8 {[%emt 0:00:29]} Rxf8 {[%emt 0:00:48]} 34. Kc2 {[%emt 0:04:28]} h5 {[%emt 0:00:35]} 35. Ng3 {[%emt 0:00:46]} Rf4 {[%emt 0:00:39]} 36. Re4 {[%emt 0:00:22]} Rxe4 {[%emt 0:00:37]} 37. fxe4 {[%emt 0:00:39]} h4 {[%emt 0:00:06]} 38. Nf5 {[%emt 0:00:21]} Bf6 {[%emt 0:00:20]} 39. Kd3 {[%emt 0:00:36]} c5 {[%emt 0:00:33]} 40. dxc6+ {[%emt 0:00:47]} Kxc6 {[%emt 0:00:04]} 41. a4 {[%emt 0:00:25]} Bd8 {[%emt 0:00:16]} 42. Ke3 {[%emt 0:00:14]} Kd7 {[%emt 0:00:16]} 43. Kf3 {[%emt 0:00:07]} Ke6 {[%emt 0:00:18]} 44. Kg4 {[%emt 0:00:08] Kd5} 1-0